Cogmind - Beta 13 @@@ ROGUE MODE // 2024.04.20 @ 10:26:17 Player: Ham Result: Destroyed by G-47 Trooper with Particle Gun Performance ------------- Evolutions (2) 1000 Regions Visited (4) 800 Robots Destroyed (42) 210 Value Destroyed (1142) 1142 Prototype IDs (4) 80 Alien Tech Used (0) 0 Bonus (-12) -12 TOTAL SCORE: 3220 Bonus ------- Friendly Fire -12 Cogmind --------- Core Integrity 0/550 Matter 6/300 Energy 77/100 System Corruption 10% Temperature Cool (18) Movement Core (50) Location -8/Materials Parts ------- > --- POWER (2) -------- (None) > --- PROPULSION (3) --- (None) > --- UTILITY (4) ------ Signal Interpreter > --- WEAPON (2) ------- (None) > --- INVENTORY (5) ---- Improved VTOL Module Terrain Scanner Armor Integrity Analyzer Minigun Advanced Assault Cannon Peak State ------------ > --- POWER ------------ Subdweller Power Source > --- PROPULSION ------- Compact Wheel Compact Wheel Subdweller Monowheel > --- UTILITY ---------- Experimental Sensor Array Signal Interpreter Improved Terrain Scanner > --- WEAPON ----------- Minigun Slug Cannon > --- INVENTORY -------- Armor Integrity Analyzer Battle Rifle Barrage Gun Grenade Launcher Rocket Launcher [Rating: 27] Favorites ----------- Power Ion Engine Engine Ion Engine Power Core Light Nuclear Core Propulsion Aluminum Leg Leg Aluminum Leg Wheel Subdweller Monowheel Flight Unit Improved VTOL Module Utility Signal Interpreter Device Experimental Sensor Array Storage Small Storage Unit Processor Signal Interpreter Weapon Assault Rifle Energy Gun Medium Laser Ballistic Gun Assault Rifle Ballistic Cannon Slug Cannon Launcher Grenade Launcher Build | -11 -10 -10 -10 -8 ------- Run | Yrd Mat Min Sub Mat Slots Evolved 4 | . . . . 4 Power 1 | . . . . 1 Propulsion 1 | . . . . 1 Utility 2 | . . . . 2 Weapon . | . . . . . Parts Attached 50 | 7 4 . 17 22 Power 10 | 1 1 . 4 4 Engine 7 | 1 . . 4 2 Core 3 | . 1 . . 2 Reactor . | . . . . . Propulsion 17 | 2 2 . 8 5 Treads . | . . . . . Leg 12 | 2 2 . 6 2 Wheel 3 | . . . 1 2 Hover . | . . . . . Flight 2 | . . . 1 1 Utility 6 | 2 1 . 1 2 Device 4 | 1 . . 1 2 Storage 1 | 1 . . . . Processor 1 | . 1 . . . Hackware . | . . . . . Protection . | . . . . . Artifact . | . . . . . Weapon 17 | 2 . . 4 11 Energy Gun 2 | 1 . . . 1 Energy Cannon . | . . . . . Ballistic Gun 10 | 1 . . 4 5 Ballistic Cannon 3 | . . . . 3 Launcher 2 | . . . . 2 Special Weapon . | . . . . . Impact Weapon . | . . . . . Slashing Weapon . | . . . . . Piercing Weapon . | . . . . . Special Melee Weapon . | . . . . . Unidentified Prototypes 2 | . . . 1 1 Parts Lost 30 | . . . 10 20 Power 8 | . . . 3 5 Propulsion 10 | . . . 5 5 Utility 3 | . . . 1 2 Weapon 9 | . . . 1 8 Highest Loss Streak 10 | . . . 3 10 To Critical Strikes 1 | . . . . 1 Average Slot Usage (%) 90 | . 99 100 96 48 Engine 8 | . 11 . 12 3 Core 4 | . 2 14 1 2 Leg 22 | . 27 28 24 3 Wheel 1 | . . . 1 7 Device 3 | . 12 . 2 6 Storage 10 | . 14 14 11 . Processor 12 | . 1 14 14 9 Energy Gun 7 | . 14 14 5 2 Ballistic Gun 17 | . 14 14 22 7 Naked Turns . | . . . . . Heaviest Build 17 | 13 15 14 15 17 Greatest Support 52 | 20 20 20 40 52 Greatest Overweight (x) 4 | . 3 . 4 2 Average Overweight (x) . | . . . . . Largest Inventory Capacity 8 | 8 8 8 8 5 Average Capacity 7 | 7 8 8 7 5 Most Carried 8 | 5 8 8 8 5 Average Carried 6 | 3 6 7 6 3 Final Capacity 8 | 8 8 8 5 5 Final Carried 8 | 5 7 8 5 5 Class Distribution -------------------- 93% | Mutant 3% | Scavenger-Skirmisher Dominant Class ---------------- Mutant | -10/Materials Mutant | -10/Mines Mutant | -10/Subcaves Mutant | -8/Materials Resources | -11 -10 -10 -10 -8 ----------- Run | Yrd Mat Min Sub Mat Matter Collected 1195 | 347 33 100 316 399 Remotely . | . . . . . Salvage Created 1326 | 195 156 137 390 448 Parts 98 | 24 11 12 27 24 Haulers Intercepted . | . . . . . Recyclers Shooed . | . . . . . Parts Field Recycled . | . . . . . Retrieved Matter . | . . . . . Parts Self-Destructed 25 | . . . 25 . Prevented . | . . . . . Kills | -11 -10 -10 -10 -8 ------- Run | Yrd Mat Min Sub Mat Combat Hostiles Destroyed 25 | . 2 4 9 10 Guns 20 | . 2 4 9 5 Cannons 2 | . . . . 2 AOE 3 | . . . . 3 Classes Destroyed 11 | 3 2 1 2 3 Worker 5 | 2 2 1 . . Builder 1 | . . . . 1 Tunneler 8 | 7 . 1 . . Recycler 2 | 1 . . . 1 Watcher 1 | . 1 . . . Swarmer 2 | . . 2 . . Grunt 9 | . 2 2 . 5 Brawler 1 | . . . . 1 Sentry 4 | . . . 1 3 Hunter 1 | . . . . 1 Subdweller 8 | . . . 8 . Best Kill Streak 5 | 5 4 2 2 2 Combat Bots Only 2 | . 2 2 2 2 Max Kills in Single Turn 1 | 1 1 1 1 1 Gunslinging . | . . . . . Exploded 1 | . . . . 1 Melee . | . . . . . Uniques/NPCs Destroyed . | . . . . . Combat | -11 -10 -10 -10 -8 -------- Run | Yrd Mat Min Sub Mat Hostile Shots Fired 228 | . 6 26 65 131 Missed 66 | . 2 8 16 40 Damage Taken 3393 | . 55 210 1188 1940 Core 793 | . . 32 200 561 Absorbed by Shields . | . . . . . Core Remaining (%) 53 | 100 . . 7 . Volleys Fired 146 | 19 12 18 41 56 Largest 2 | 2 2 2 2 2 Hottest 113 | 70 70 70 78 113 Shots Fired 269 | 37 24 36 77 95 Gun 231 | 37 24 36 77 57 Cannon 29 | . . . . 29 Launcher 9 | . . . . 9 Special . | . . . . . Kinetic 198 | 19 12 18 75 74 Thermal 62 | 18 12 18 2 12 Explosive 9 | . . . . 9 Electromagnetic . | . . . . . Robot Hit Streak 9 | 9 5 7 7 8 Robot Miss Streak 5 | 3 2 5 3 3 Penetration Max . | . . . . . Secondary Targets 3 | . . . 3 . Max Gunslinging Chain 1 | . . . 1 . Shots Hit Robots 152 | 19 13 21 49 50 Core Hits 78 | 11 8 9 22 28 Critical Kills . | . . . . . Critical Parts Destroyed . | . . . . . Critical Strikes 6 | 2 2 . . 2 Burn 5 | 2 2 . . 1 Blast 1 | . . . . 1 Melee Attacks . | . . . . . Impact . | . . . . . Slashing . | . . . . . Piercing . | . . . . . Sneak Attacks . | . . . . . Combat Hostiles . | . . . . . Follow-up Attacks . | . . . . . Damage Inflicted 2801 | 244 186 259 769 1343 Guns 1970 | 244 186 259 769 512 Cannons 390 | . . . . 390 Explosions 441 | . . . . 441 Melee . | . . . . . Ramming . | . . . . . Kinetic 1880 | 71 75 157 769 808 Thermal 480 | 173 111 102 . 94 Explosive 441 | . . . . 441 Electromagnetic . | . . . . . Impact . | . . . . . Slashing . | . . . . . Piercing . | . . . . . Highest Corruption 10 | . . . . 10 Average Corruption 7 | . . . . 7 Corruption Purged . | . . . . . Corruption Blocked . | . . . . . Effects 17 | . . . . 17 Message Errors 3 | . . . . 3 Matter Fused 4 | . . . . 4 Heat Flow Errors 3 | . . . . 3 Energy Discharges 2 | . . . . 2 Data Loss (minor) 2 | . . . . 2 Misdirections 1 | . . . . 1 Weapon Failures 2 | . . . . 2 Overload Shots . | . . . . . Overflow Damage 67 | . . . . 67 Projectiles . | . . . . . Explosions 67 | . . . . 67 Melee . | . . . . . Knockbacks 4 | . . . . 4 Impact . | . . . . . Kinetic 4 | . . . . 4 Secondary . | . . . . . Self-Inflicted Damage 244 | . . . . 244 Shots 5 | . . . . 5 Rammed . | . . . . . Targets Rammed . | . . . . . Kicked . | . . . . . Crushed . | . . . . . Highest Temperature 393 | 27 60 120 2 393 Average Temperature 52 | 10 23 47 1 82 Received Heat Transfer 888 | . 33 96 207 552 Effects 2 | . . . . 2 Energy Bleed 2 | . . . . 2 Siege Activations . | . . . . . Robots Corrupted . | . . . . . Combat Hostiles . | . . . . . Parts Fried . | . . . . . Impact Corruptions . | . . . . . Robots Melted . | . . . . . Combat Hostiles . | . . . . . Parts Melted 4 | 2 1 . 1 . Heat Transferred 1739 | 666 481 296 . 296 Parts Sabotaged . | . . . . . Parts Stolen . | . . . . . Parts Stripped . | . . . . . Power Chain Reactions . | . . . . . Alert | -11 -10 -10 -10 -8 ------- Run | Yrd Mat Min Sub Mat Peak Influence 316 | 50 121 126 . 316 Initial 46 | . 32 46 . . Average 79 | 22 57 75 . 122 Maximum Alert Level 1 | . . . . 1 Low Security (%) 95 | 100 100 100 . 85 Level 1 4 | . . . . 14 Level 2 . | . . . . . Level 3 . | . . . . . Level 4 . | . . . . . Level 5 . | . . . . . High Security . | . . . . . Max Security . | . . . . . Squads Dispatched 6 | . 1 . . 5 Investigation 1 | . . . . 1 Extermination . | . . . . . Reinforcement 5 | . 1 . . 4 Assault . | . . . . . Garrison . | . . . . . Intercept . | . . . . . Searches Triggered . | . . . . . Construction Impeded 1 | . . . . 1 Haulers Reinforced . | . . . . . Active Scanning Responses . | . . . . . Cargo Convoy Interrupts . | . . . . . Stealth | -11 -10 -10 -10 -8 --------- Run | Yrd Mat Min Sub Mat Distress Signals 1 | . . . . 1 Communications Jammed . | . . . . . Distress Signals . | . . . . . Times Spotted 47 | . 5 6 17 19 Peak Tracking Total 5 | . 3 3 5 4 Tactical Retreats 5 | . . 2 . 3 Traps | -11 -10 -10 -10 -8 ------- Run | Yrd Mat Min Sub Mat Traps Triggered 3 | . 1 . 2 . Indirectly . | . . . . . Trap Hack Attempts . | . . . . . Triggered . | . . . . . Disarmed . | . . . . . Reprogrammed . | . . . . . Reused . | . . . . . Traps Extracted . | . . . . . Installed . | . . . . . Triggered . | . . . . . Machines | -11 -10 -10 -10 -8 ---------- Run | Yrd Mat Min Sub Mat Machines Disabled 4 | . . . . 4 Max in Single Turn 3 | . . . . 3 Machines Repaired . | . . . . . Machines Dismantled . | . . . . . Machines Sabotaged . | . . . . . Overloaded Fab Kills . | . . . . . Hacking | -11 -10 -10 -10 -8 --------- Run | Yrd Mat Min Sub Mat Machines Accessed 8 | . 5 . . 3 Terminals 5 | . 3 . . 2 Fabricators . | . . . . . Repair Stations . | . . . . . Recycling Units 3 | . 2 . . 1 Scanalyzers . | . . . . . Garrison Access . | . . . . . Total Hacks 17 | . 13 . . 4 Successful 6 | . 5 . . 1 Failed 11 | . 8 . . 3 Catastrophic 2 | . 1 . . 1 Database Lockouts . | . . . . . Manual . | . . . . . Terminals 10 | . 7 . . 3 Fabricators . | . . . . . Repair Stations . | . . . . . Recycling Units 7 | . 6 . . 1 Scanalyzers . | . . . . . Garrison Access . | . . . . . Terminal Hacks 2 | . 2 . . . Prototype ID Bank 1 | . 1 . . . Assault Status 1 | . 1 . . . Fabricator Hacks . | . . . . . Repair Station Hacks . | . . . . . Recycling Unit Hacks 4 | . 3 . . 1 Process 1 | . 1 . . . Retrieve Matter 1 | . 1 . . . Retrieve Components 2 | . 1 . . 1 Scanalyzer . | . . . . . Garrison Access Hacks . | . . . . . Unauthorized Hacks . | . . . . . Terminals . | . . . . . Fabricators . | . . . . . Repair Stations . | . . . . . Recycling Units . | . . . . . Scanalyzers . | . . . . . Garrison Access . | . . . . . Data Cores Recovered . | . . . . . Used . | . . . . . Hacking Detections 6 | . 4 . . 2 Full Trace Events 2 | . 1 . . 1 Feedback Events . | . . . . . Feedback Blocked . | . . . . . Robot Schematics Acquired . | . . . . . Robots Built . | . . . . . Authchips . | . . . . . Time . | . . . . . Total Robot Build Rating . | . . . . . Part Schematics Acquired . | . . . . . Parts Built . | . . . . . Authchips . | . . . . . Time . | . . . . . Total Part Build Rating . | . . . . . Parts Repaired . | . . . . . Time . | . . . . . Parts Recycled . | . . . . . Recycled Matter . | . . . . . Retrieved Matter . | . . . . . Retrieved Components 11 | . 2 . . 9 Parts Scanalyzed . | . . . . . Part Schematics Acquired . | . . . . . Parts Damaged . | . . . . . Bothacking | -11 -10 -10 -10 -8 ------------ Run | Yrd Mat Min Sub Mat Used RIF Installer . | . . . . . Robots Hacked . | . . . . . Non-combat . | . . . . . Combat . | . . . . . Robot Hacks Applied . | . . . . . Relay Couplers Released . | . . . . . Fabnet Peak Effective % . | . . . . . Robots Rewired . | . . . . . Allies Hacked . | . . . . . Hacks Repelled . | . . . . . Allies | -11 -10 -10 -10 -8 -------- Run | Yrd Mat Min Sub Mat Total Allies . | . . . . . Largest Group . | . . . . . Highest-Rated Group . | . . . . . Highest-Rated Ally . | . . . . . Total Orders . | . . . . . Ally Attacks . | . . . . . Total Damage . | . . . . . Kills . | . . . . . Allies Corrupted . | . . . . . Allies Melted . | . . . . . Intel | -11 -10 -10 -10 -8 ------- Run | Yrd Mat Min Sub Mat Robot Analysis Total . | . . . . . Derelict Logs Recovered 3 | . . 2 1 . Drone Launches . | . . . . . Drone Recoveries . | . . . . . Exploration | -11 -10 -10 -10 -8 ------------- Run | Yrd Mat Min Sub Mat Turns Passed 3538 | 222 329 728 1747 512 Spaces Moved 2526 | 128 233 559 1185 421 Core 134 | 9 2 . 19 104 Treads . | . . . . . Legs 2012 | 119 231 559 1039 64 Wheels 267 | . . . 127 140 Hover . | . . . . . Flight 113 | . . . . 113 Fastest Speed 35 | 50 120 120 110 35 Average Speed 119 | 115 120 120 134 77 Slowest Speed 250 | 120 200 120 250 190 Overloaded Moves . | . . . . . Propulsion Burnouts . | . . . . . Robots Hopped . | . . . . . Cave-ins Triggered 1 | . . . . 1 Exploration Rate (%) 46 | 5 38 99 63 28 Regions Visited 4 Branch Regions 2 Pre-discovered Areas 1 | . . 1 . . Known Exits Taken 3 | . 1 1 1 . Unknown Exits Taken 1 | 1 . . . . Scrap Searched 10 | . . 1 9 . Spaces Dug 8 | . . . . 8 Terrain Destroyed 111 | . . . . 111 Melee . | . . . . . Projectile 9 | . . . . 9 AOE 102 | . . . . 102 Terrain Rammed . | . . . . . Walls Destroyed . | . . . . . Machines Disabled . | . . . . . Actions | -11 -10 -10 -10 -8 --------- Run | Yrd Mat Min Sub Mat Total 2789 | 165 260 581 1263 520 Wait . | . . . . . Move 2522 | 127 232 558 1184 421 Hop . | . . . . . Pick Up 53 | 12 8 3 14 16 Fast Attach . | . . . . . Attach 39 | 7 4 . 9 19 Detach 5 | . 1 . . 4 Swap 11 | . . . 8 3 Drop 13 | . 3 2 7 1 Fire 146 | 19 12 18 41 56 Melee . | . . . . . Ram . | . . . . . Kick . | . . . . . Crush . | . . . . . Escape Stasis . | . . . . . Rewire . | . . . . . Trap . | . . . . . Miscellaneous . | . . . . . Route ------- -11/Scrapyard -10/Materials -10/Mines (discovered 3 exits: *Mat x2 / *Sub) -10/Subcaves (discovered 2 exits: *Mat x2) -8/Materials (discovered 2 exits: Fac x2) History --------- Turn | Location | Event 8 | -11/Scrapyard | Discovered new exit (range 14) 223 | -11/Scrapyard | Entered Materials 308 | -10/Materials | Build established: Mutant 488 | -10/Materials | Discovered new exit (range 12) 551 | -10/Materials | Identified exit to Mines 552 | -10/Materials | Entered Mines 564 | -10/Mines | Discovered new exit (range 5) 569 | -10/Mines | Identified exit to Materials 593 | -10/Mines | Learned location of Storage (-7) 640 | -10/Mines | Found a damaged Exp. Sensor Array with a note attached 642 | -10/Mines | Found Prototype Device 768 | -10/Mines | Discovered exit to Materials (range 7) 796 | -10/Mines | Received a Rocket Launcher from a helpful Derelict 1165 | -10/Mines | Discovered new exit (range 9) 1176 | -10/Mines | Identified exit to Subcaves 1280 | -10/Mines | Entered Subcaves 1293 | -10/Subcaves | Shifting Twisted Machinery released Spk. Treads 1327 | -10/Subcaves | Shifting Twisted Machinery released Mak. Kinetic Plating 1368 | -10/Subcaves | Shifting Twisted Machinery released Barrage Gun 1391 | -10/Subcaves | Ambushed by swarm of Subdwellers 1969 | -10/Subcaves | Learned 8 Materials zone layouts 2086 | -10/Subcaves | Shifting Twisted Machinery released Sub. Power Source 2441 | -10/Subcaves | Discovered new exit (range 12) 2479 | -10/Subcaves | Core integrity fell below 50% 2503 | -10/Subcaves | Identified exit to Materials 2634 | -10/Subcaves | Lost 3 parts (1p2n) 2672 | -10/Subcaves | Ambushed by Subdwellers from Twisted Machinery 2718 | -10/Subcaves | Identified Exp. Sensor Array 2860 | -10/Subcaves | Core integrity fell below 20% 2966 | -10/Subcaves | Discovered exit to Materials (range 14) 2975 | -10/Subcaves | Shifting Twisted Machinery released Slug Cannon 3022 | -10/Subcaves | Shifting Twisted Machinery released Shrapnel Trap 3027 | -10/Subcaves | Entered Materials 3027 | -8/Materials | Evolved 4 slots: Power x1, Propulsion x1, Utility x2 3028 | -8/Materials | Identified exit to Factory 3231 | -8/Materials | Lost 10 parts (1p2n2u5w) 3291 | -8/Materials | Crushed by falling debris 3291 | -8/Materials | System corruption reached 10% 3322 | -8/Materials | Lost 3 parts (2p1n) 3398 | -8/Materials | Core integrity fell below 50% 3427 | -8/Materials | Lost 5 parts (1p2n2w) 3526 | -8/Materials | Core integrity fell below 20% 3539 | -8/Materials | Destroyed by G-47 Trooper with Particle Gun Last Messages --------------- 03508_ Acquired Terrain Scanner. 03512_ G-47 Trooper suffers critical hit (Burn). 03512_ G-47 Trooper knocked back. 03515_ G-47 Trooper Lgt. Nuclear Core blasted off. 03515_ G-47 Trooper knocked back. 03520_ Particle Gun destroyed. 03523_ G-47 Trooper knocked back. 03523_ Lgt. Deuterium Engine destroyed. 03524_ R-06 Scavenger inserts Beam Rifle into recycling unit. 03527_ System corrupted: Energy discharge (-38). 03527_ R-06 Scavenger inserts Hammer into recycling unit. 03530_ Acquired 2 matter. 03530_ R-06 Scavenger inserts Aluminum Leg into recycling unit. 03531_ Critical hit (Burn: +37). 03533_ R-06 Scavenger inserts Hvy. Assault Rifle into recycling unit. 03537_ R-06 Scavenger collects Lgt. Nuclear Core. Map ----- +----------------------------------------------------+ | "" ! ???????????????????????##????????????????? | | ???????????????????????????????????????????? | | ##########???????? #???????????????????????????? | | #???????? ???????????????????????????? | | """ ##???????? #???????###?????????????????? | | """ #????????# #???????# ####??##########??? | | == """ ##???###?" #????####"#" ##?# #??? | | = #???? #?T #????# #?# """ #??? | | = """ #?"" #?" #????# """#?# """ #??? | | """ #?"" #?# #????# """#?# """ #??? | | = """ #""" #?# ###### "" ="""#?# #??? | | # ??# #! # "" #?# """ #??? | | ####+#### ??## # # "T """#?# """ #### | | ## ###+####### # # "" """#?#= """ # | | # # "" """#?# # " | | [ [ + # #?#####+#### " | | !=/ # #####"######## #?# " | | ## ########### # ! #### ### " | | ### ###??#?????# # + T + | | # ########???# # ############## ### " | | ### # #???# #######???########## ##?#! " | | + + #?### #???# # #??# " | | # # ##### ##### #???# """ # #??# " | | # # ! / #???#%##### """ # #??# | | # # ######+##??## % + """ # #####+# | | ##### !#?????????##@/;####""" + | | #???########?????????# !g ##"R """ # | | ####???????????????????# rg= ##""" """ ###### | | #???##???#?????????????# !g"" ##""" """ #????# | | ??????????????? ???????# ![Y" ## #????#] !! | | ??????#?????????? ?????# "" ###########????#]]!! | | ????#????#??#????????? # #??????????????##### | | ???????????????????????########??????????????????? | | ?????????????????????????????????????????????????? | | ?????????#???????????????????????????????????????? | | | | | | | | | | | | | | | | | | | | | | | | | | | | | | | +----------------------------------------------------+ Best States ------------- Heat Dissipation 31 Energy Generation 19 Energy Capacity 250 Matter Stores 300 Matter Capacity 300 Sight Range 16 Robot Scan Range 20 Terrain Scan Range 16 Terrain Scan Density 10 Evasion (%) 63 Item Schematics ----------------- None Robot Schematics ------------------ None Fabricated ------------ Nothing Alien Tech Used ----------------- None Achievements -------------- Unlikely Earthworm Challenges ------------ None Game ------ Seed ArmageddonRestorationBlade Manual? 0 Play Time 00:41:51 Cumulative 7.5 hours Start 2024.04.20 @ 09:46:24 End 2024.04.20 @ 10:26:17 Sessions 1 Manual Loads 0 Difficulty Rogue Special Mode None Game No. 15 Rogue 15 Adventurer 0 Explorer 0 Win Type - Total 0 Types 0/0/0/0/0/0/0/0/0 Lore% 9 Gallery% 12 Achievement% 12 Wizard Run 0 Options --------- Layout 1 ASCII 0 Keyboard 0 Movement Mouse Keybinds 0 Fullscreen 1 Font 16/SmallcapsGlow Map View 55x38 Zoom Use 0% Tactical HUD 1 Map Filters NONE Filters NONE Steam 1 RUN: 622516a9-67bc-4b96-bb1d-2b2bebc10188